[Event "4NCL Div 1 2024-25"]
[Site "England"]
[Date "2024.11.23"]
[Round "1.14"]
[White "Banerjee, Supratit"]
[Black "Cyborowski, Lukasz"]
[Result "0-1"]
[Annotator "RC"]
[ECO "B07"]
[WhiteElo "2141"]
[BlackElo "2454"]
[PlyCount "114"]
[EventDate "2024.11.23"]
[EventType "team-tourn"]
[EventCountry "ENG"]
[SourceTitle "playchess.com"]
[Source "ChessBase"]
[SourceQuality "1"]
[TimeControl "40/6000+30:3000+30"]

1. e4 {[%emt 0:10:06]} d6 {[%emt 0:10:22]} 2. d4 {[%emt 0:00:07]} Nf6 {[%emt 0:00:15]} 3. Bd3 {[%emt 0:00:56]} g6 {[%emt 0:04:41]} 4. Nf3 {[%emt 0:00:13]} Bg7 {[%emt 0:00:06]} 5. O-O {[%emt 0:00:14]} O-O {[%emt 0:00:15]} 6. Re1 {[%emt 0:00:11]} Nc6 {[%emt 0:03:41]} 7. c3 {[%emt 0:03:15]} e5 {[%emt 0:02:14]} 8. Nbd2 {[%emt 0:03:17]} Nh5 {[%emt 0:03:22]} 9. Nb3 {[%emt 0:01:54]} a5 {[%emt 0:06:32]} 10. a4 {[%emt 0:00:19]} exd4 {[%emt 0:02:18]} 11. Nfxd4 {[%emt 0:11:20]} Re8 {[%emt 0:05:49]} 12. Nxc6 {[%emt 0:03:11]} bxc6 {[%emt 0:00:06]} 13. Be3 {[%emt 0:00:21]} Nf6 {[%emt 0:05:57]} 14. f3 {[%emt 0:01:07]} Nd7 {[%emt 0:01:50]} 15. Qd2 {[%emt 0:20:52]} Ne5 {[%emt 0:04:15]} 16. Rad1 {[%emt 0:02:10]} Bd7 {[%emt 0:06:49]} 17. Be2 {[%emt 0:10:14]} c5 {[%emt 0:08:00]} 18. Nxc5 {[%emt 0:26:15]} dxc5 {[%emt 0:04:32]} 19. f4 {[%emt 0:00:16]} Qe7 {[%emt 0:22:16]} 20. fxe5 {[%emt 0:00:36]} Bxa4 {[%emt 0:00:07]} 21. Ra1 {[%emt 0:00:59]} Bc6 {[%emt 0:00:06]} 22. Bc4 {[%emt 0:01:22]} Bxe5 {[%emt 0:10:11]} 23. Qf2 {[%emt 0:00:35]} Rf8 {[%emt 0:05:20]} 24. Bxc5 {[%emt 0:00:53]} Bd6 {[%emt 0:00:05]} 25. Bd4 {[%emt 0:00:22]} Be5 {[%emt 0:00:33]} 26. Rad1 {[%emt 0:04:44]} Rad8 {[%emt 0:02:46]} 27. Bc5 {[%emt 0:00:49]} Bd6 {[%emt 0:00:06]} 28. Rxd6 {[%emt 0:04:53]} cxd6 {[%emt 0:00:08]} 29. Bd4 {[%emt 0:00:04]} Rde8 {[%emt 0:01:34]} 30. Bf6 {[%emt 0:00:19]} Qc7 {[%emt 0:00:12]} 31. Qf4 {[%emt 0:00:50]} Re6 {[%emt 0:00:05]} 32. Bd4 {[%emt 0:00:57]} Re5 {[%emt 0:00:24]} 33. Bxe5 {[%emt 0:00:44]} dxe5 {[%emt 0:00:04]} 34. Qf6 {[%emt 0:00:16]} Bb7 {[%emt 0:01:28]} 35. Ba2 {[%emt 0:00:19]} Bc6 {[%emt 0:00:48]} 36. h4 {[%emt 0:00:31]} Bb5 {[%emt 0:00:34]} 37. h5 {[%emt 0:01:21]} Qc6 {[%emt 0:00:16]} 38. Qxe5 {[%emt 0:00:12]} gxh5 {[%emt 0:00:47]} 39. Rd1 {[%emt 0:01:48]} Qb6+ {[%emt 0:00:26]} 40. Kh1 {[%emt 0:00:43]} Be2 {[%emt 0:00:30]} 41. Bxf7+ {[%emt 0:50:14]} Rxf7 {[%emt 0:22:09]} 42. Qg5+ {[%emt 0:00:00]} Qg6 {[%emt 0:01:25]} 43. Rd8+ {[%emt 0:00:00]} Kg7 {[%emt 0:02:48]} 44. Qe5+ {[%emt 0:00:00]} Qf6 {[%emt 0:01:00]} 45. Qg3+ {[%emt 0:00:00]} Bg4 {[%emt 0:00:26]} 46. Rd5 {[%emt 0:00:00]} Qf4 {[%emt 0:02:40]} 47. Qxf4 {[%emt 0:00:00]} Rxf4 {[%emt 0:00:05]} 48. Rxa5 {[%emt 0:00:00]} Rxe4 {[%emt 0:00:12]} 49. Rc5 {[%emt 0:00:00]} Re2 {[%emt 0:03:46]} 50. b4 {[%emt 0:00:00]} Kf6 {[%emt 0:00:40]} 51. Rc7 {[%emt 0:00:00]} Bf5 {[%emt 0:03:23]} 52. Kh2 {[%emt 0:00:00]} h4 {[%emt 0:01:18]} 53. c4 {[%emt 0:00:00]} h3 {[%emt 0:00:18]} 54. Kg3 {[%emt 0:00:00]} Rxg2+ {[%emt 0:01:00]} 55. Kf3 {[%emt 0:00:00]} Rg1 {[%emt 0:01:01]} 56. Rc6+ {[%emt 0:00:00]} Kg5 {[%emt 0:00:16]} 57. Rc7 {[%emt 0:00:00]} h2 {[%emt 0:00:06]} 0-1

[Event "4NCL Div 1 2024-25"]
[Site "England"]
[Date "2024.11.23"]
[Round "1.15"]
[White "Galyas, Miklos"]
[Black "Patel, Zain"]
[Result "1/2-1/2"]
[Annotator "TA"]
[ECO "A30"]
[WhiteElo "2374"]
[BlackElo "2083"]
[PlyCount "99"]
[EventDate "2024.11.23"]
[EventType "team-tourn"]
[EventCountry "ENG"]
[SourceTitle "playchess.com"]
[Source "ChessBase"]
[SourceQuality "1"]
[TimeControl "40/6000+30:3000+30"]

{[%evp 19,99,34,68,70,68,54,70,56,57,53,111,37,141,107,201,168,173,173,184,136,129,106,122,69,126,93,167,79,127,44,52,43,75,51,73,-47,-52,-95,-80,-78,32,14,79,68,79,54,67,59,68,64,60,52,77,52,52,52,42,45,155,149,151,62,59,54,70,61,61,72,61,20,28,28,40,28,26,18,18,21,281,61,58,68]} 1. Nf3 {[%emt 0:10:04]} Nf6 {[%emt 0:13:26]} 2. g3 {[%emt 0:00:08]} b6 {[%emt 0:02:11]} 3. Bg2 {[%emt 0:00:08]} Bb7 {[%emt 0:00:23]} 4. O-O {[%emt 0:00:13]} c5 {[%emt 0:04:46]} 5. c4 {[%emt 0:00:29]} e6 {[%emt 0:03:47]} 6. Nc3 {[%emt 0:01:01]} Be7 {[%emt 0:03:16]} 7. d4 {[%emt 0:04:06]} cxd4 {[%emt 0:02:28]} 8. Qxd4 {[%emt 0:00:08]} O-O {[%emt 0:03:32]} 9. Rd1 {[%emt 0:01:24]} Nc6 {[%emt 0:06:23]} 10. Qf4 {[%emt 0:02:57]} Rc8 {[%emt 0:02:13]} 11. b3 $1 {[%emt 0:01:57]} Ba8 {[%emt 0:06:35]} 12. Bb2 {[%emt 0:03:08]} a6 {[%emt 0:02:54]} 13. e4 {[%emt 0:10:02]} d6 {[%emt 0:07:13]} 14. Rac1 {[%emt 0:09:46]} h6 {[%emt 0:07:35]} (14... Qd7 $14) 15. h3 {[%emt 0:08:41]} (15. Ba3 $16) 15... Nh7 {[%emt 0:08:47]} (15... Qd7 $14) 16. h4 {[%emt 0:14:11]} f5 {[%emt 0:05:07]} (16... Nf6 $16 {is a better defense.}) 17. exf5 {[%emt 0:03:13]} Rxf5 {[%emt 0:01:13]} 18. Qe3 {[%emt 0:00:39]} Nf8 {[%emt 0:05:54]} 19. Ne4 {[%emt 0:00:52]} (19. Na4 $18 Rb8 20. Nd4 Nxd4 21. Qxd4) 19... Qc7 {[%emt 0:04:48]} 20. Nd4 {[%emt 0:01:24] White is much more active.} Rf7 {[%emt 0:03:57]} 21. Re1 {[%emt 0:10:15]} (21. Ne2 $16) 21... Ne5 {[%emt 0:04:22]} (21... Nxd4 $14 22. Bxd4 Nd7) 22. Qe2 {[%emt 0:00:40]} Ned7 {[%emt 0:01:32]} (22... Re8 $16 {might work better.}) 23. Rcd1 {[%emt 0:04:52]} (23. Bh3 $18 {is more deadly.}) 23... Nf6 {[%emt 0:02:49]} (23... e5 $142) 24. Nc3 {[%emt 0:06:43]} (24. Nxf6+ $16 Bxf6 25. Bxa8 (25. Nxe6 $2 Nxe6 26. Qxe6 Bxb2 $19) 25... Rxa8 26. Ba3 (26. Nxe6 $2 Nxe6 27. Bc1 Bd4 $19)) 24... Bxg2 $14 {[%emt 0:01:26]} 25. Kxg2 {[%emt 0:00:02]} Qb7+ {[%emt 0:01:52]} 26. Kg1 {[%emt 0:00:12]} Rc5 {[%emt 0:00:30][%cal Ob6b5]} 27. Na4 {[%emt 0:02:50]} (27. Nxe6 $2 Re5 28. Qd2 Rxe6 $19 (28... Nxe6 $2 29. Nd5 $19)) ({Better is} 27. Ba3 $16 Ra5 28. Bb2) 27... Re5 $15 {[%emt 0:00:24]} 28. Qf3 {[%emt 0:00:43]} Ne4 {[%emt 0:00:41]} 29. Qh1 {[%emt 0:00:35] Threatens to win with f4.} Bf6 {[%emt 0:02:17]} (29... Rxf2 30. Rxe4 Rxb2 31. Rxe5 Qxh1+ 32. Kxh1 $16) (29... d5 $1 $17 30. Re2 b5 31. cxd5 bxa4 32. Rxe4 Rxd5) 30. Re2 {[%emt 0:04:18] Black must now prevent f4.} ({Don't blunder} 30. Nc6 $2 Nxf2 31. Kxf2 Bxh4+ 32. Kg1 Rxe1+ (32... Bxg3 $2 {too greedy.} 33. Nxe5 Qxh1+ 34. Kxh1 $18) 33. Rxe1 Bxg3 $19) (30. Ne2 {feels hotter.} Rf5 31. Bxf6 R5xf6 32. Nec3) 30... Nc5 {[%emt 0:01:27]} (30... d5 $11 {remains equal.}) 31. Qxb7 $16 {[%emt 0:00:33]} Rxb7 {[%emt 0:00:07]} 32. Nc3 {[%emt 0:01:03]} Rxe2 $1 {[%emt 0:00:11]} 33. Ndxe2 {[%emt 0:00:22]} Rd7 {[%emt 0:00:32][%cal Od6d5]} 34. Bc1 {[%emt 0:00:49]} Ng6 {[%emt 0:00:25]} 35. Kg2 {[%emt 0:05:30]} Kf7 {[%emt 0:01:02]} 36. Be3 {[%emt 0:00:34]} Ne5 {[%emt 0:00:48]} 37. f4 {[%emt 0:01:43]} Ng4 {[%emt 0:00:49]} 38. Bg1 {[%emt 0:00:06] And now b4 would win.} Bd8 {[%emt 0:00:17]} ({Black should try} 38... Bxc3 $14 39. Nxc3 a5) 39. b4 {[%emt 0:02:11]} Nb7 {[%emt 0:00:03] [#]} 40. c5 {[%emt 0:00:53]} bxc5 $14 {[%emt 0:00:45]} 41. bxc5 {[%emt 0:50:01] Hoping for c6.} Rc7 {[%emt 0:24:31]} 42. cxd6 {[%emt 0:00:00]} Rd7 {[%emt 0:00:29]} 43. Ne4 $36 {[%emt 0:00:00][%mdl 2048] White is on the roll.} Nf6 {[%emt 0:01:25]} 44. N2c3 {[%emt 0:00:00] White wants to play Bd4.} Ba5 {[%emt 0:03:30]} 45. Nxf6 {[%emt 0:00:00]} gxf6 {[%emt 0:24:18]} 46. Ne4 {[%emt 0:00:00]} Bb4 $1 {[%emt 0:00:00]} 47. Rc1 {[%emt 0:00:00]} (47. Rb1 $5 a5 $8 48. Rd1 $14 (48. Bd4 f5 $14)) 47... Nxd6 {[%emt 0:00:00]} 48. Rd1 {[%emt 0:00:00] Strongly threatening Bb6.} a5 $2 {[%emt 0:00:00][%mdl 8192] [#]} (48... Ke7 $1 $11 {and Black is okay.} 49. Nxd6 Rxd6 50. Rxd6 Kxd6) 49. a4 $2 {[%emt 0:00:00]} (49. Bb6 $1 $18) 49... Ke7 {[%emt 0:00:00]} 50. Nxd6 {[%emt 0:00:58] Weighted Error Value: White=0.37/Black=0.38.  Loses game:     	---       	Black=1      Missed win:     	White=1     	---        Mistake:       	White=7     	Black=9      Inaccurate:     	White=2     	---        OK:         	White=7     	Black=10     Best:        	White=3     	Black=6      Strong:       	---       	Black=2} 1/2-1/2

[Event "4NCL Div 1 2024-25"]
[Site "England"]
[Date "2024.11.23"]
[Round "1.16"]
[White "Lalic, Peter D"]
[Black "Terbe, Julianna"]
[Result "1/2-1/2"]
[Annotator "RC"]
[ECO "A00"]
[WhiteElo "2131"]
[BlackElo "2225"]
[PlyCount "361"]
[EventDate "2024.11.23"]
[EventType "team-tourn"]
[EventCountry "ENG"]
[SourceTitle "playchess.com"]
[Source "ChessBase"]
[SourceQuality "1"]
[TimeControl "40/6000+30:3000+30"]

1. Nc3 {[%emt 0:10:03]} d5 {[%emt 0:10:19]} 2. d3 {[%emt 0:00:04]} d4 {[%emt 0:02:32]} 3. Nb1 {[%emt 0:00:18]} e5 {[%emt 0:01:02]} 4. e4 {[%emt 0:00:05]} dxe3 {[%emt 0:07:22]} 5. Bxe3 {[%emt 0:00:05]} Nc6 {[%emt 0:00:11]} 6. Nc3 {[%emt 0:01:23]} Nf6 {[%emt 0:00:40]} 7. Nf3 {[%emt 0:03:58]} Be7 {[%emt 0:08:14]} 8. Be2 {[%emt 0:00:18]} O-O {[%emt 0:05:05]} 9. O-O {[%emt 0:00:53]} Re8 {[%emt 0:04:26]} 10. d4 {[%emt 0:07:40]} exd4 {[%emt 0:05:57]} 11. Nxd4 {[%emt 0:01:09]} Nxd4 {[%emt 0:01:36]} 12. Qxd4 {[%emt 0:01:13]} Qxd4 {[%emt 0:01:15]} 13. Bxd4 {[%emt 0:00:06]} Bf5 {[%emt 0:00:53]} 14. Nb5 {[%emt 0:14:47]} Bd8 {[%emt 0:06:53]} 15. Bf3 {[%emt 0:02:08]} Bxc2 {[%emt 0:25:20]} 16. Rfc1 {[%emt 0:13:09]} Be4 {[%emt 0:02:11]} 17. Bxf6 {[%emt 0:28:58]} gxf6 {[%emt 0:08:57]} 18. Nxc7 {[%emt 0:09:18]} Bxc7 {[%emt 0:00:07]} 19. Rxc7 {[%emt 0:00:03]} b6 {[%emt 0:05:12]} 20. Rd1 {[%emt 0:05:09]} a5 {[%emt 0:04:04]} 21. Bxe4 {[%emt 0:03:13]} Rxe4 {[%emt 0:00:04]} 22. g3 {[%emt 0:00:14]} Re2 {[%emt 0:00:48]} 23. Rdd7 {[%emt 0:00:26]} Rf8 {[%emt 0:00:21]} 24. b3 {[%emt 0:03:33]} Rxa2 {[%emt 0:00:05]} 25. Rc6 {[%emt 0:00:27]} Rb2 {[%emt 0:02:33]} 26. Rxb6 {[%emt 0:00:15]} a4 {[%emt 0:00:20]} 27. Ra7 {[%emt 0:01:14]} axb3 {[%emt 0:01:35]} 28. Rab7 {[%emt 0:00:13]} Kg7 {[%emt 0:01:12]} 29. Rxb3 {[%emt 0:00:10]} Rxb3 {[%emt 0:00:04]} 30. Rxb3 {[%emt 0:00:07]} h5 {[%emt 0:01:36]} 31. Kg2 {[%emt 0:00:39]} Ra8 {[%emt 0:00:31]} 32. Rb4 {[%emt 0:00:11]} Kg6 {[%emt 0:01:03]} 33. Rb5 {[%emt 0:00:28]} Ra2 {[%emt 0:00:37]} 34. Rb8 {[%emt 0:00:06]} Kg7 {[%emt 0:00:25]} 35. Rc8 {[%emt 0:00:26]} Rb2 {[%emt 0:00:13]} 36. Ra8 {[%emt 0:00:08]} Rc2 {[%emt 0:00:08]} 37. Kf3 {[%emt 0:00:13]} Rc3+ {[%emt 0:01:05]} 38. Ke4 {[%emt 0:00:11]} Rc2 {[%emt 0:00:05]} 39. Ke3 {[%emt 0:00:10]} Rc3+ {[%emt 0:00:29]} 40. Kd2 {[%emt 0:00:38]} Rb3 {[%emt 0:00:06]} 41. Re8 {[%emt 0:50:33]} Rb1 {[%emt 0:51:46]} 42. Re4 {[%emt 0:00:38]} Kg6 {[%emt 0:01:39]} 43. Ke2 {[%emt 0:00:37]} Rh1 {[%emt 0:01:10]} 44. Rh4 {[%emt 0:00:08]} Ra1 {[%emt 0:00:09]} 45. Kf3 {[%emt 0:00:07]} Ra3+ {[%emt 0:00:29]} 46. Kg2 {[%emt 0:00:08]} Ra2 {[%emt 0:00:03]} 47. Rd4 {[%emt 0:00:15]} Rb2 {[%emt 0:00:21]} 48. Rd8 {[%emt 0:00:09]} Kg7 {[%emt 0:00:10]} 49. Rd4 {[%emt 0:00:17]} Kg6 {[%emt 0:00:08]} 50. Rf4 {[%emt 0:00:08]} Ra2 {[%emt 0:01:28]} 51. Kh3 {[%emt 0:00:16]} Rb2 {[%emt 0:00:22]} 52. Kh4 {[%emt 0:01:11]} Rb5 {[%emt 0:01:13]} 53. Rf3 {[%emt 0:02:52]} Rb4+ {[%emt 0:00:39]} 54. Kh3 {[%emt 0:00:18]} Rb2 {[%emt 0:00:14]} 55. Rf4 {[%emt 0:00:32]} Kg5 {[%emt 0:00:49]} 56. Kg2 {[%emt 0:00:22]} Kg6 {[%emt 0:00:04]} 57. Re4 {[%emt 0:00:27]} Ra2 {[%emt 0:00:10]} 58. Kf3 {[%emt 0:00:20]} Rb2 {[%emt 0:00:21]} 59. Re2 {[%emt 0:00:26]} Rb3+ {[%emt 0:00:31]} 60. Re3 {[%emt 0:00:11]} Rb2 {[%emt 0:00:04]} 61. Re2 {[%emt 0:00:35]} Rb3+ {[%emt 0:00:05]} 62. Kg2 {[%emt 0:00:10]} Ra3 {[%emt 0:00:11]} 63. Re8 {[%emt 0:00:19]} Kg7 {[%emt 0:00:11]} 64. Re4 {[%emt 0:01:05]} Kg6 {[%emt 0:00:16]} 65. Rf4 {[%emt 0:00:10]} Ra2 {[%emt 0:00:05]} 66. Kh3 {[%emt 0:00:25]} Kg5 {[%emt 0:00:08]} 67. Rf3 {[%emt 0:00:18]} Rb2 {[%emt 0:00:07]} 68. Kg2 {[%emt 0:00:47]} Kg6 {[%emt 0:00:08]} 69. Ra3 {[%emt 0:00:30]} Rc2 {[%emt 0:02:53]} 70. Ra8 {[%emt 0:00:15]} Kg7 {[%emt 0:00:06]} 71. Rb8 {[%emt 0:00:52]} Ra2 {[%emt 0:00:08]} 72. Rc8 {[%emt 0:00:40]} Rb2 {[%emt 0:00:05]} 73. Rd8 {[%emt 0:01:06]} Ra2 {[%emt 0:00:10]} 74. Rd3 {[%emt 0:00:29]} Rb2 {[%emt 0:00:08]} 75. Re3 {[%emt 0:00:55]} Ra2 {[%emt 0:00:07]} 76. Rd3 {[%emt 0:00:31]} Rb2 {[%emt 0:00:08]} 77. Ra3 {[%emt 0:00:18]} Rc2 {[%emt 0:00:06]} 78. h3 {[%emt 0:00:06]} Rc4 {[%emt 0:01:07]} 79. Kf3 {[%emt 0:00:13]} Rb4 {[%emt 0:00:13]} 80. Re3 {[%emt 0:00:13]} Kg6 {[%emt 0:00:21]} 81. Re4 {[%emt 0:00:18]} Rb2 {[%emt 0:02:03]} 82. Rf4 {[%emt 0:01:17]} Rb3+ {[%emt 0:00:17]} 83. Ke4 {[%emt 0:01:40]} Rb4+ {[%emt 0:00:42]} 84. Ke3 {[%emt 0:00:23]} Rb3+ {[%emt 0:00:06]} 85. Ke2 {[%emt 0:00:27]} Ra3 {[%emt 0:00:05]} 86. Rd4 {[%emt 0:00:23]} Rb3 {[%emt 0:00:26]} 87. Rd3 {[%emt 0:00:50]} Rb2+ {[%emt 0:00:21]} 88. Rd2 {[%emt 0:00:26]} Rb3 {[%emt 0:00:05]} 89. Rd3 {[%emt 0:00:06]} Rb2+ {[%emt 0:00:05]} 90. Kf3 {[%emt 0:00:10]} Rb4 {[%emt 0:00:10]} 91. Rc3 {[%emt 0:00:27]} Ra4 {[%emt 0:00:07]} 92. Rb3 {[%emt 0:00:20]} Rc4 {[%emt 0:00:24]} 93. Ra3 {[%emt 0:00:08]} Rb4 {[%emt 0:00:05]} 94. Ke3 {[%emt 0:00:27]} Rb2 {[%emt 0:01:11]} 95. Rd3 {[%emt 0:00:14]} Ra2 {[%emt 0:00:08]} 96. Rb3 {[%emt 0:00:16]} Rc2 {[%emt 0:00:22]} 97. Ra3 {[%emt 0:00:16]} Rb2 {[%emt 0:00:22]} 98. Kf3 {[%emt 0:00:15]} Rc2 {[%emt 0:00:13]} 99. Rd3 {[%emt 0:02:00]} Rc4 {[%emt 0:01:40]} 100. Rd8 {[%emt 0:01:24]} Kg7 {[%emt 0:00:18]} 101. Re8 {[%emt 0:00:32]} Ra4 {[%emt 0:00:16]} 102. Re4 {[%emt 0:00:08]} Ra3+ {[%emt 0:00:26]} 103. Kg2 {[%emt 0:00:12]} Kg6 {[%emt 0:00:06]} 104. Rh4 {[%emt 0:01:13]} Kg5 {[%emt 0:00:33]} 105. Rd4 {[%emt 0:00:20]} Kg6 {[%emt 0:00:05]} 106. Rc4 {[%emt 0:00:05]} Rb3 {[%emt 0:00:05]} 107. Ra4 {[%emt 0:00:05]} Rc3 {[%emt 0:00:04]} 108. Ra7 {[%emt 0:00:17]} Rc4 {[%emt 0:00:10]} 109. Rb7 {[%emt 0:00:07]} Ra4 {[%emt 0:00:04]} 110. Re7 {[%emt 0:00:29]} Rb4 {[%emt 0:00:07]} 111. Kf1 {[%emt 0:00:20]} Rb1+ {[%emt 0:00:20]} 112. Re1 {[%emt 0:00:13]} Rb2 {[%emt 0:00:05]} 113. Re4 {[%emt 0:00:13]} Rb3 {[%emt 0:01:13]} 114. Rc4 {[%emt 0:00:21]} Ra3 {[%emt 0:00:16]} 115. Kg2 {[%emt 0:00:23]} Rb3 {[%emt 0:00:26]} 116. g4 {[%emt 0:00:28]} hxg4 {[%emt 0:03:14]} 117. Rxg4+ {[%emt 0:00:16]} Kh6 {[%emt 0:00:52]} 118. Rh4+ {[%emt 0:01:37]} Kg6 {[%emt 0:00:25]} 119. Rg4+ {[%emt 0:00:08]} Kh6 {[%emt 0:00:13]} 120. Rg8 {[%emt 0:00:47]} Ra3 {[%emt 0:00:26]} 121. Rf8 {[%emt 0:01:10]} Kg7 {[%emt 0:00:10]} 122. Rb8 {[%emt 0:00:06]} Kg6 {[%emt 0:00:18]} 123. Rb5 {[%emt 0:00:06]} Ra4 {[%emt 0:02:11]} 124. Rc5 {[%emt 0:00:06]} Rb4 {[%emt 0:00:07]} 125. Ra5 {[%emt 0:00:06]} Rc4 {[%emt 0:00:04]} 126. Rd5 {[%emt 0:00:07]} Rb4 {[%emt 0:00:05]} 127. Rc5 {[%emt 0:00:13]} Ra4 {[%emt 0:00:09]} 128. Rb5 {[%emt 0:00:54]} Rc4 {[%emt 0:00:05]} 129. Kg3 {[%emt 0:00:06]} Rc3+ {[%emt 0:01:21]} 130. Kh2 {[%emt 0:00:03]} Rc2 {[%emt 0:00:30]} 131. Kg2 {[%emt 0:00:06]} Rc4 {[%emt 0:00:03]} 132. Ra5 {[%emt 0:00:27]} Rb4 {[%emt 0:00:11]} 133. Ra8 {[%emt 0:00:10]} Rb3 {[%emt 0:01:59]} 134. Rc8 {[%emt 0:00:14]} Ra3 {[%emt 0:00:07]} 135. Rb8 {[%emt 0:00:13]} Rc3 {[%emt 0:00:19]} 136. Re8 {[%emt 0:00:15]} Ra3 {[%emt 0:00:05]} 137. Rd8 {[%emt 0:00:31]} Rb3 {[%emt 0:00:05]} 138. Rd7 {[%emt 0:00:17]} Ra3 {[%emt 0:00:29]} 139. Rc7 {[%emt 0:00:20]} Rb3 {[%emt 0:00:10]} 140. Ra7 {[%emt 0:00:31]} Rc3 {[%emt 0:00:05]} 141. Kh2 {[%emt 0:00:33]} Rc2 {[%emt 0:00:25]} 142. Kg3 {[%emt 0:00:12]} Rc3+ {[%emt 0:00:10]} 143. Kg2 {[%emt 0:00:04]} Rb3 {[%emt 0:00:10]} 144. Rd7 {[%emt 0:00:19]} Ra3 {[%emt 0:00:32]} 145. Rd2 {[%emt 0:00:14]} Rb3 {[%emt 0:01:27]} 146. Ra2 {[%emt 0:00:04]} Rc3 {[%emt 0:00:03]} 147. Ra1 {[%emt 0:00:13]} Rb3 {[%emt 0:00:24]} 148. Rc1 {[%emt 0:00:05]} Ra3 {[%emt 0:00:03]} 149. Rd1 {[%emt 0:00:09]} Rb3 {[%emt 0:00:05]} 150. Re1 {[%emt 0:00:09]} Ra3 {[%emt 0:00:15]} 151. Rh1 {[%emt 0:00:09]} Kh5 {[%emt 0:00:49]} 152. Rb1 {[%emt 0:00:09]} Kg6 {[%emt 0:00:05]} 153. Rb6 {[%emt 0:00:19]} Ra4 {[%emt 0:02:00]} 154. Rd6 {[%emt 0:00:24]} Rb4 {[%emt 0:00:12]} 155. Rd2 {[%emt 0:00:16]} Rb3 {[%emt 0:01:10]} 156. Re2 {[%emt 0:00:09]} Ra3 {[%emt 0:00:12]} 157. Re3 {[%emt 0:00:44]} Ra4 {[%emt 0:01:36]} 158. Rg3+ {[%emt 0:00:20]} Kh6 {[%emt 0:00:10]} 159. Rg8 {[%emt 0:00:24]} Ra3 {[%emt 0:00:33]} 160. f3 {[%emt 0:00:21]} Ra4 {[%emt 0:01:47]} 161. Kg3 {[%emt 0:00:22]} f5 {[%emt 0:03:40]} 162. h4 {[%emt 0:03:00]} f6 {[%emt 0:01:10]} 163. Rf8 {[%emt 0:02:37]} Kg7 {[%emt 0:00:46]} 164. Rb8 {[%emt 0:00:13]} Kg6 {[%emt 0:00:10]} 165. Rb5 {[%emt 0:01:15]} Rc4 {[%emt 0:00:51]} 166. Ra5 {[%emt 0:00:07]} Rb4 {[%emt 0:00:03]} 167. Kh3 {[%emt 0:00:27]} Rc4 {[%emt 0:00:23]} 168. Rb5 {[%emt 0:00:29]} Ra4 {[%emt 0:00:06]} 169. Rd5 {[%emt 0:00:11]} Rb4 {[%emt 0:00:04]} 170. Rc5 {[%emt 0:00:19]} Ra4 {[%emt 0:00:05]} 171. Rb5 {[%emt 0:00:12]} Rc4 {[%emt 0:00:06]} 172. Ra5 {[%emt 0:00:06]} Rb4 {[%emt 0:00:08]} 173. Rd5 {[%emt 0:00:19]} Ra4 {[%emt 0:00:07]} 174. Kg3 {[%emt 0:00:19]} Rb4 {[%emt 0:00:06]} 175. Rc5 {[%emt 0:00:23]} Ra4 {[%emt 0:00:11]} 176. Rc8 {[%emt 0:00:43]} Rb4 {[%emt 0:00:17]} 177. Rg8+ {[%emt 0:00:13]} Kh7 {[%emt 0:00:12]} 178. Ra8 {[%emt 0:00:22]} Kg6 {[%emt 0:00:03]} 179. Rg8+ {[%emt 0:00:07]} Kh7 {[%emt 0:00:03]} 180. Rc8 {[%emt 0:00:08]} Kg6 {[%emt 0:00:07]} 181. Rg8+ {[%emt 0:00:03]} 1/2-1/2